bitfinex/quotes_SOLUSD_20250829
["timestamp","ask_amount","ask_price","bid_price","bid_amount"]
[1756469410201,0.06,207.96,207.93,0.69]
[1756469411019,0.06,207.96,207.93,5.49924983]
[1756469413110,0.06,207.96,207.95,11.67178341]
[1756469413533,0.06,207.96,207.95,12.33178341]
[1756469414003,0.06,207.96,207.95,14.25944741]
[1756469415421,0.06,207.96,207.95,19.06829569]
[1756469417720,0.06,207.96,207.95,7.39651228]
[1756469418017,0.06,207.96,207.95,18.40829569]
[1756469418202,0.06,207.96,207.95,19.06829569]
[1756469421504,0.06,207.96,207.95,19.09829569]
[1756469421705,0.06,207.96,207.95,57.17829569]
[1756469421903,0.06,207.99,207.98,26.0]
[1756469422116,0.06,207.99,207.98,37.67178341]
[1756469422329,0.06,207.99,207.98,76.39178341]
[1756469422521,0.06,207.99,207.98,78.31916941]
[1756469423019,0.06,207.99,207.98,83.12732404]
[1756469423726,0.06,207.99,207.98,163.72732404]
[1756469423906,0.06,208.01,207.98,163.72732404]
[1756469424100,0.06,208.01,208.0,37.67178341]
[1756469424408,0.06,208.01,208.0,118.27178341]
[1756469424610,0.06,208.01,208.0,118.93178341]
[1756469424925,0.06,208.01,208.0,156.88558021]
[1756469425112,0.06,208.01,208.0,161.69327251]
[1756469426530,0.06,208.01,208.0,163.62037951]
[1756469431214,1e-08,208.01,208.0,177.21597352]
[1756469433217,1e-08,208.01,208.0,151.34217672]
[1756469434413,0.06,208.08,208.07,11.67178341]
[1756469434616,0.06,208.08,208.07,49.65178341]
[1756469434839,0.06,208.08,208.07,50.31178341]
[1756469435223,0.06,208.08,208.07,55.11785828]
[1756469437012,0.06,208.08,208.07,54.45785828]
[1756469437619,0.06,208.08,208.07,42.78607487]
[1756469437827,0.06,208.08,208.07,54.45785828]
[1756469438024,0.06,208.08,208.07,16.47785828]
[1756469438221,0.06,208.08,208.07,54.41785828]
[1756469441420,0.06,208.08,208.07,135.01785828]
[1756469441716,0.06,208.08,208.07,135.67785828]
[1756469442025,0.06,208.08,208.07,54.41785828]
[1756469442740,0.06,208.08,208.07,149.27345229]
[1756469442922,1e-08,208.08,208.07,161.08739727]
[1756469443435,1e-08,208.08,208.07,149.41561386]
[1756469443845,1e-08,208.08,208.07,151.34179286]
[1756469444436,1e-08,208.08,208.07,163.01357627]
[1756469445034,1e-08,208.08,208.07,151.34179286]
[1756469445824,1e-08,208.08,208.07,163.01357627]
[1756469446949,1e-08,208.08,208.07,59.07000945]
[1756469447153,1e-08,208.08,208.07,82.41357627]
[1756469447521,1e-08,208.08,208.07,82.89418375]
[1756469447845,0.06,208.13,208.11,26.0]
[1756469448158,0.1,208.17,208.13,13.73775558]
[1756469448325,0.1,208.17,208.16,11.67178341]
[1756469448515,0.1,208.17,208.16,49.63178341]
[1756469449338,0.1,208.17,208.16,51.55740641]
[1756469450346,0.1,208.17,208.16,56.34140333]
[1756469451723,0.79,208.17,208.09,4.80561295]
[1756469451932,11.77178341,208.17,208.11,13.59786941]
[1756469452131,0.69,208.16,208.12,11.67178341]
[1756469452430,0.69,208.15,208.13,11.67178341]
[1756469452849,0.69,208.14,208.13,11.67178341]
[1756469453020,0.69,208.14,208.13,37.96]
[1756469453225,0.69,208.14,208.13,49.63178341]
[1756469453746,0.69,208.14,208.13,54.43647278]
[1756469455026,0.69,208.14,208.1,11.671784]
[1756469455328,0.69,208.13,208.11,49.59178341]
[1756469455643,0.69,208.13,208.12,16.47670364]
[1756469456760,0.69,208.13,208.12,4.80492023]
[1756469457639,0.75,208.13,208.12,4.80492023]
[1756469458148,0.75,208.13,208.12,42.70492023]
[1756469458539,0.75,208.13,208.12,37.9]
[1756469459932,0.06,208.13,208.12,37.9]
[1756469460139,0.75,208.13,208.1,11.67178341]
[1756469460335,0.69,208.12,208.11,37.88]
[1756469462549,0.69,208.12,208.1,37.86]
[1756469462733,0.71,208.11,208.09,37.86]
[1756469462930,0.71,208.1,208.09,37.86]
[1756469463135,11.67178341,208.12,208.09,37.86]
[1756469463357,0.71,208.1,208.09,37.86]
[1756469464455,0.71,208.1,208.09,42.66561295]
[1756469464751,0.71,208.12,208.09,42.66561295]
[1756469465146,0.06,208.13,208.09,54.99739636]
[1756469465349,0.77,208.13,208.09,54.99739636]
[1756469465667,0.71,208.12,208.09,42.66561295]
[1756469466063,0.06,208.13,208.08,4.80581872]
[1756469466244,0.71,208.11,208.09,37.86]
[1756469466565,0.71,208.1,208.07,1.956365]
[1756469466870,0.71,208.09,208.08,37.84]
[1756469467235,0.71,208.12,208.08,37.86]
[1756469467435,0.06,208.13,208.11,11.67178341]
[1756469467671,0.06,208.13,208.11,50.19178341]
[1756469467974,0.17930966,208.16,208.11,50.19178341]
[1756469468552,0.17930966,208.16,208.12,5.46492023]
[1756469468854,0.17930966,208.16,208.13,37.86]
[1756469469440,11.77178341,208.17,208.13,37.86]
[1756469469441,0.1,208.17,208.13,37.86]
[1756469470062,0.81,208.17,208.13,37.86]
[1756469470367,0.1,208.17,208.14,12.33178341]
[1756469470964,0.1,208.17,208.13,42.66464225]
[1756469471268,0.1,208.17,208.13,43.32464225]
[1756469473943,0.1,208.17,208.14,0.66]
[1756469474139,0.1,208.17,208.15,37.82]
[1756469474346,0.81,208.17,208.15,37.82]
[1756469474896,12.48178341,208.17,208.12,4.80490619]
[1756469475175,12.48178341,208.17,208.13,37.82]
[1756469475373,0.1,208.17,208.13,38.48]
[1756469475664,0.1,208.17,208.14,0.66]
[1756469475966,0.1,208.17,208.15,37.82]
[1756469476165,0.1,208.17,208.16,11.67178341]
[1756469476368,0.06,208.22,208.17,13.59559401]
[1756469476550,0.06,208.22,208.21,11.67178341]
[1756469476749,0.06,208.22,208.21,49.59178341]
[1756469476967,0.06,208.22,208.21,50.25178341]
[1756469477947,0.06,208.22,208.21,63.84737742]
[1756469478161,0.06,208.22,208.21,68.6502207]
[1756469479454,0.06,208.22,208.21,56.97843729]
[1756469479651,0.06,208.22,208.21,68.6502207]
[1756469480048,0.06,208.22,208.21,43.36284328]
[1756469480449,0.06,208.22,208.21,55.03462669]
[1756469481978,0.06,208.22,208.21,149.2302207]
[1756469482559,1e-08,208.22,208.21,149.37238227]
[1756469483781,1e-08,208.22,208.21,111.47238227]
[1756469483957,1e-08,208.22,208.21,149.37238227]
[1756469484959,1e-08,208.22,208.21,137.70059886]
[1756469485359,1e-08,208.22,208.21,149.37238227]
[1756469486262,1e-08,208.22,208.21,151.29726327]
[1756469490065,1e-08,208.25,208.24,26.0]
[1756469490266,1e-08,208.25,208.24,75.67394498]
[1756469490571,1e-08,208.25,208.24,76.33394498]
[1756469490767,1e-08,208.25,208.24,78.25854798]
[1756469490966,1e-08,208.27,208.26,0.14216157]
[1756469491170,1e-08,208.27,208.26,63.26953899]
[1756469491480,1e-08,208.27,208.26,68.73122918]
[1756469491680,1e-08,208.27,208.26,70.65555518]
[1756469492176,1e-08,208.27,208.26,32.79555518]
[1756469492382,1e-08,208.27,208.26,20.3216102]
[1756469492578,1e-08,208.27,208.26,70.51339361]
[1756469494780,1e-08,208.27,208.26,151.11339361]
[1756469495276,1e-08,208.27,208.26,113.25339361]
[1756469495478,1e-08,208.27,208.26,151.13339361]
[1756469498275,1e-08,208.27,208.26,150.45339361]
[1756469499367,1e-08,208.27,208.26,151.11339361]
[1756469500286,1e-08,208.27,208.26,113.25339361]
[1756469500486,1e-08,208.27,208.26,151.09339361]
[1756469500781,1e-08,208.27,208.26,113.25339361]
[1756469500986,1e-08,208.27,208.26,151.09339361]
[1756469501491,1e-08,208.27,208.26,151.07339361]
[1756469501677,1e-08,208.27,208.26,113.25339361]
[1756469501878,1e-08,208.27,208.26,151.07339361]
[1756469505196,0.1,208.29,208.28,39.59559401]
[1756469505398,0.1,208.29,208.28,89.20953899]
[1756469505580,0.1,208.29,208.28,89.86953899]
[1756469505892,0.1,208.29,208.28,101.54132199]
[1756469506105,0.1,208.29,208.28,106.3425511]
[1756469507006,0.72,208.34,208.32,11.67178341]
[1756469507210,0.72,208.34,208.33,49.45178341]
[1756469507697,0.72,208.34,208.33,37.78]
[1756469507902,0.72,208.34,208.33,4.8000768]
[1756469508094,0.72,208.34,208.33,42.5800768]
[1756469511779,0.72,208.36,208.33,4.8000768]
[1756469512087,0.72,208.35,208.34,37.78]
[1756469512774,0.72,208.35,208.34,42.5798464]
[1756469512973,0.72,208.35,208.34,4.7998464]
[1756469513174,0.72,208.35,208.34,42.5798464]
[1756469513469,0.72,208.38,208.34,42.5798464]
[1756469513679,0.72,208.37,208.34,42.5798464]
[1756469513999,0.72,208.36,208.34,42.5798464]
[1756469515000,0.72,208.35,208.34,42.5798464]
[1756469515295,26.0,208.41,208.34,4.7998464]
[1756469515480,0.72,208.35,208.32,80.6]
[1756469515687,11.67178341,208.36,208.33,37.78]
[1756469515885,0.72,208.35,208.33,37.78]
[1756469516085,0.72,208.35,208.33,42.58002058]
[1756469516797,0.72,208.37,208.33,42.58002058]
[1756469517005,0.72,208.36,208.33,42.58002058]
[1756469517205,0.06,208.35,208.33,42.58002058]
[1756469518201,0.06,208.35,208.33,43.24002058]
[1756469518388,0.06,208.35,208.33,54.25180358]
[1756469519305,0.06,208.35,208.33,54.91180358]
[1756469520009,0.06,208.35,208.34,37.78]
[1756469520215,0.06,208.35,208.34,52.03559401]
[1756469520393,0.06,208.35,208.34,63.70737701]
[1756469520993,0.06,208.35,208.34,67.84722341]
[1756469521510,0.06,208.35,208.34,49.451783]
[1756469521810,0.75,208.35,208.34,49.451783]
[1756469521993,12.42178341,208.35,208.34,37.78]
[1756469522196,0.06,208.35,208.34,42.5798464]
[1756469522402,0.06,208.35,208.34,68.51722382]
[1756469522585,0.06,208.35,208.34,56.84544041]
[1756469522789,0.06,208.35,208.34,68.51722382]
[1756469524992,0.06,208.35,208.34,56.84544041]
[1756469527792,0.06,208.35,208.34,19.06544041]
[1756469528089,0.06,208.35,208.34,56.84544041]
[1756469528290,0.06,208.35,208.34,137.47938539]
[1756469528511,0.06,208.35,208.34,99.66544041]
[1756469528686,0.06,208.35,208.34,98.99544041]
[1756469528890,0.06,208.35,208.34,136.75544041]
[1756469529090,0.06,208.35,208.34,99.66544041]
[1756469529317,0.06,208.35,208.34,98.99544041]
[1756469529611,0.06,208.35,208.34,136.75544041]
[1756469531014,0.06,208.35,208.34,149.09722382]
[1756469531310,0.06,208.35,208.34,149.11722441]
[1756469531508,0.06,208.35,208.34,161.45900782]
[1756469532217,0.06,208.35,208.34,149.78722441]
[1756469532409,0.06,208.35,208.34,112.02722441]
[1756469532613,0.06,208.35,208.34,161.45900782]
[1756469532996,0.06,208.35,208.34,123.69900782]
[1756469533404,0.06,208.35,208.34,161.45900782]
[1756469534618,30.79732073,208.45,208.34,161.45900782]
[1756469534619,0.69,208.45,208.39,13.59559401]
[1756469534809,0.69,208.45,208.41,25.26737742]
[1756469535010,0.69,208.45,208.42,37.76]
[1756469535315,0.69,208.44,208.42,49.431784]
[1756469535727,0.69,208.43,208.42,63.02737801]
[1756469535918,0.69,208.43,208.42,49.431784]
[1756469536131,0.69,208.43,208.4,4.79841109]
[1756469536303,0.69,208.42,208.41,37.76]
[1756469536617,0.69,208.44,208.41,37.76]
[1756469537498,11.73178341,208.45,208.41,37.76]
[1756469537693,0.69,208.44,208.41,37.76]
[1756469538222,0.69,208.44,208.42,4.79800403]
[1756469538410,0.69,208.44,208.43,37.76]
[1756469538808,0.06,208.45,208.43,37.76]
[1756469539009,0.69,208.44,208.43,37.76]
[1756469539624,0.06,208.45,208.43,37.76]
[1756469539812,0.75,208.45,208.43,37.76]
[1756469540006,11.67178341,208.44,208.43,37.76]
[1756469540205,0.06,208.45,208.43,37.76]
[1756469540414,0.69,208.44,208.43,37.76]
[1756469540727,12.36178341,208.44,208.43,37.76]
[1756469540926,0.69,208.44,208.38,13.59559401]
[1756469541135,11.67178341,208.42,208.39,49.491784]
[1756469541341,11.67178341,208.43,208.39,49.491784]
[1756469541500,0.06,208.45,208.4,0.67]
[1756469541697,0.06,208.45,208.42,13.59559401]
[1756469542010,11.67178341,208.55,208.5,13.59559401]
[1756469542213,0.69,208.55,208.51,37.76]
[1756469542519,0.69,208.54,208.52,37.84]
[1756469542825,12.36178341,208.54,208.52,37.84]
[1756469543027,12.36178341,208.54,208.51,14.418572]
[1756469543326,11.67178341,208.54,208.51,14.418572]
[1756469543532,11.67178341,208.54,208.5,13.59559401]
[1756469543824,0.69,208.56,208.51,38.49]
[1756469544033,4.03031196,208.63,208.53,4.79547307]
[1756469544034,12.36178341,208.58,208.53,4.79547307]
[1756469544204,0.69,208.6,208.54,38.49]
[1756469544400,11.67178341,208.57,208.54,38.49]
[1756469544606,11.67178341,208.57,208.54,37.82]
[1756469544907,0.69,208.59,208.54,38.49]
[1756469545115,12.36178341,208.58,208.54,38.49]
[1756469545315,11.67178341,208.57,208.54,37.82]
[1756469545517,12.36178341,208.56,208.5,11.671784]
[1756469545709,11.67178341,208.54,208.52,13.59559401]
[1756469545905,11.67178341,208.53,208.52,37.8]
[1756469546107,26.0,208.58,208.52,37.8]
[1756469546328,11.67178341,208.53,208.52,37.8]
[1756469547008,26.0,208.58,208.52,37.8]
[1756469547214,11.67178341,208.55,208.52,38.47]
[1756469547415,11.67178341,208.54,208.52,38.47]
[1756469548016,11.67178341,208.54,208.52,37.8]
[1756469548229,11.67178341,208.54,208.52,43.26567864]
[1756469548429,11.67178341,208.54,208.52,42.59567864]
[1756469548635,11.67178341,208.54,208.52,43.26567864]
[1756469548812,11.67178341,208.53,208.52,43.26567864]
[1756469549012,11.67178341,208.53,208.52,37.82]
[1756469549236,11.67178341,208.53,208.51,13.59559401]
[1756469549543,0.69,208.57,208.52,37.8]
[1756469549909,0.69,208.56,208.52,37.8]
[1756469550220,0.69,208.56,208.52,42.59563273]
[1756469550542,26.69,208.61,208.53,14.31559401]
[1756469550726,11.67178341,208.56,208.55,13.59559401]
[1756469551116,0.69,208.6,208.55,14.31559401]
[1756469551415,26.0,208.64,208.54,13.59559401]
[1756469551416,0.69,208.59,208.54,13.59559401]
[1756469551615,0.69,208.59,208.56,37.92]
[1756469551823,11.67178341,208.57,208.54,0.72]
[1756469552018,0.69,208.58,208.55,37.9]
[1756469552216,0.69,208.58,208.56,37.9]
[1756469553032,11.67178341,208.57,208.56,37.9]
[1756469553432,0.69,208.6,208.56,37.9]
[1756469553642,0.69,208.62,208.56,38.62]
[1756469553839,11.67178341,208.57,208.56,38.62]
[1756469554841,11.67178341,208.57,208.56,37.9]
[1756469555222,11.67178341,208.57,208.56,38.62]
[1756469555539,11.67178341,208.57,208.56,37.9]
[1756469555918,11.67178341,208.57,208.56,37.88]
[1756469556121,31.48390949,208.6,208.56,37.88]
[1756469556436,31.48358553,208.62,208.57,0.72]
[1756469556624,11.67178341,208.58,208.57,0.72]
[1756469556947,11.67178341,208.58,208.57,38.58]
[1756469557119,11.67178341,208.58,208.57,37.86]
[1756469557329,12.36178341,208.58,208.57,37.86]
[1756469557538,11.67178341,208.58,208.57,37.86]
[1756469558044,11.67178341,208.58,208.55,13.59559401]
[1756469558345,5.48398055,208.6,208.54,80.6]
[1756469558563,0.69,208.59,208.51,0.72]
[1756469558723,0.69,208.59,208.52,37.84]
[1756469558926,0.69,208.58,208.52,37.84]
[1756469559155,0.69,208.57,208.52,37.84]
[1756469559344,11.67178341,208.53,208.49,14.31559401]
[1756469559520,0.69,208.53,208.5,37.86]
[1756469559841,0.69,208.53,208.42,144.49457563]
[1756469559842,26.69,208.52,208.44,15.140651]
[1756469560049,0.69,208.51,208.45,37.86]
[1756469560628,11.67178341,208.46,208.45,37.86]
[1756469560823,11.67178341,208.46,208.42,13.59559401]
[1756469561042,0.69,208.48,208.43,37.86]
[1756469561350,11.67178341,208.44,208.42,38.58]
[1756469561652,11.67178341,208.43,208.42,37.86]
[1756469562449,11.67178341,208.43,208.42,38.58]
[1756469562652,11.67178341,208.43,208.42,37.86]
[1756469563940,12.36178341,208.43,208.38,14.425504]
[1756469564256,0.69,208.42,208.39,37.84]
[1756469564431,0.69,208.42,208.38,37.86]
[1756469564750,11.67178341,208.44,208.39,0.72]
[1756469564751,0.69,208.44,208.39,0.72]
[1756469565151,0.69,208.48,208.4,0.72]
[1756469565454,0.69,208.54,208.43,11.67178341]
[1756469565659,11.67178341,208.5,208.45,13.59559401]
[1756469565844,0.69,208.56,208.47,4.79685326]
[1756469566043,11.67178341,208.51,208.48,0.72]
[1756469566356,11.67178341,208.52,208.49,38.62]
[1756469566658,0.69,208.56,208.5,0.72]
[1756469566850,11.67178341,208.53,208.5,5.51607815]
[1756469567047,11.67178341,208.53,208.51,0.72]
[1756469567555,16.10440113,208.64,208.52,0.72]
[1756469567556,11.67178341,208.54,208.52,0.72]
[1756469568249,0.69,208.59,208.53,0.72]
[1756469568556,26.0,208.56,208.53,0.72]
[1756469568733,11.67178341,208.55,208.53,86.11542321]
[1756469568936,11.67178341,208.56,208.53,85.39542321]
[1756469569137,11.67178341,208.56,208.54,0.72]
[1756469569775,11.67178341,208.55,208.53,80.6]
[1756469569994,11.67178341,208.58,208.55,0.72]
[1756469570171,11.67178341,208.57,208.55,0.72]
[1756469570467,11.67178341,208.57,208.55,5.51496025]
[1756469570846,11.67178341,208.56,208.55,0.72]
[1756469571043,11.67178341,208.56,208.54,42.67519966]
[1756469571254,11.67178341,208.56,208.54,43.39519966]
[1756469571446,11.67178341,208.56,208.55,0.72]
[1756469571665,0.69,208.61,208.55,0.72]
[1756469571868,11.67178341,208.57,208.55,0.72]
[1756469572345,0.69,208.61,208.55,0.72]
[1756469572552,11.67178341,208.59,208.56,13.59559401]
[1756469572756,11.67178341,208.6,208.57,0.72]
[1756469572959,11.67178341,208.59,208.58,26.0]
[1756469573853,11.67178341,208.6,208.58,26.0]
[1756469574164,0.69,208.63,208.58,4.7943028]
[1756469574461,0.06,208.59,208.58,43.5343028]
[1756469575247,0.06,208.59,208.58,57.12989681]
[1756469575645,0.06,208.59,208.58,161.21562479]
[1756469576466,11.67178341,208.68,208.62,13.59559401]
[1756469576652,11.67178341,208.68,208.63,38.74]
[1756469576846,11.67178341,208.68,208.64,0.72]
[1756469577050,0.69,208.71,208.64,0.72]
[1756469577372,11.67178341,208.69,208.65,13.59559401]
[1756469577666,11.67178341,208.7,208.66,38.72]
[1756469578075,0.69,208.75,208.67,5.51225571]
[1756469578368,11.67178341,208.71,208.68,51.61559401]
[1756469578667,11.67178341,208.71,208.68,52.33559401]
[1756469579048,11.67178341,208.72,208.69,0.72]
[1756469579447,0.69,208.74,208.69,5.51174924]
[1756469579650,11.67178341,208.72,208.69,4.79174924]
[1756469579866,0.69,208.76,208.7,0.72]
[1756469580163,0.69,208.76,208.71,38.04]
[1756469580369,0.69,208.75,208.71,38.04]
[1756469580568,0.72,208.75,208.71,38.04]
[1756469580873,26.0,208.78,208.69,38.04]
[1756469580874,0.72,208.74,208.69,38.04]
[1756469581066,0.72,208.73,208.69,38.04]
[1756469581362,26.72,208.78,208.7,0.66]
[1756469581567,0.72,208.78,208.7,5.45156684]
[1756469581761,0.72,208.78,208.71,0.66]
[1756469581965,11.67178341,208.73,208.72,38.04]
[1756469582147,0.72,208.78,208.72,38.7]
[1756469582352,11.67178341,208.75,208.72,38.7]
[1756469582775,11.67178341,208.75,208.73,0.66]
[1756469583153,0.72,208.8,208.74,0.66]
[1756469583363,11.67178341,208.76,208.75,38.04]
[1756469583876,0.72,208.8,208.75,38.04]
[1756469584076,11.67178341,208.76,208.74,118.62]
[1756469584268,11.67178341,208.75,208.74,118.12]
[1756469585371,11.67178341,208.75,208.74,80.1]
[1756469585556,11.67178341,208.75,208.74,118.12]
[1756469586164,5.50955216,208.79,208.74,118.12]
[1756469586360,11.67178341,208.75,208.74,118.12]
[1756469586682,11.67178341,208.76,208.74,43.47059405]
[1756469587159,11.67178341,208.75,208.74,43.47059405]
[1756469587359,11.67178341,208.75,208.74,38.02]
[1756469588776,0.72,208.79,208.74,38.02]
[1756469588978,11.67178341,208.75,208.74,38.02]
[1756469589573,11.67178341,208.75,208.7,81.26]
[1756469589774,11.67178341,208.71,208.69,13.59559401]
[1756469589972,11.67178341,208.7,208.69,13.59559401]
[1756469590162,11.67178341,208.7,208.69,132.79559401]
[1756469590364,0.72,208.74,208.69,132.79559401]
[1756469590878,11.67178341,208.7,208.69,132.79559401]
[1756469591776,11.67178341,208.71,208.69,137.58739045]
[1756469592086,11.67178341,208.7,208.69,94.85559401]
[1756469592259,0.72,208.74,208.69,132.81559401]
[1756469592458,11.67178341,208.7,208.69,132.81559401]
[1756469592658,11.67178341,208.7,208.69,137.60738799]
[1756469592863,26.72,208.77,208.69,137.60738799]
[1756469593065,11.67178341,208.72,208.69,137.60738799]
[1756469593382,26.72,208.77,208.7,0.66]
[1756469593582,11.67178341,208.73,208.71,37.96]
[1756469593875,11.67178341,208.72,208.71,37.96]
[1756469594672,0.78,208.76,208.71,37.96]
[1756469594863,11.67178341,208.72,208.71,37.96]
[1756469595263,0.72,208.75,208.71,37.96]
[1756469595481,11.67178341,208.72,208.71,37.96]
[1756469596578,11.67178341,208.72,208.69,80.6]
[1756469596776,11.67178341,208.72,208.7,37.92]
[1756469596777,0.72,208.72,208.7,37.92]
[1756469596976,11.67178341,208.71,208.7,37.92]
[1756469598162,0.72,208.74,208.7,37.92]
[1756469598362,11.67178341,208.71,208.7,43.37156439]
[1756469598769,0.78,208.76,208.7,123.97156439]
[1756469598963,11.67178341,208.73,208.7,123.97156439]
[1756469599280,11.67178341,208.71,208.7,118.52]
[1756469599770,11.67178341,208.71,208.7,119.18]
[1756469600084,11.67178341,208.72,208.7,123.97156684]
[1756469600282,11.67178341,208.72,208.71,37.88]
[1756469600466,11.67178341,208.72,208.71,38.54]
[1756469600870,11.67178341,208.72,208.71,37.88]
[1756469602889,5.51051405,208.75,208.71,37.88]
[1756469603072,11.67178341,208.72,208.7,80.6]
[1756469603382,4.79051405,208.75,208.71,37.82]
[1756469603683,0.72,208.74,208.72,37.82]
[1756469604365,11.67178341,208.73,208.72,37.82]
[1756469604570,11.67178341,208.73,208.69,80.6]
[1756469604883,11.67178341,208.7,208.63,13.59559401]
[1756469605068,0.72,208.69,208.64,37.82]
[1756469605270,11.67178341,208.65,208.64,37.82]
[1756469605664,26.0,208.73,208.64,38.48]
[1756469605872,0.72,208.73,208.65,0.66]
[1756469606082,0.72,208.73,208.66,37.84]
[1756469606298,26.72,208.72,208.67,37.84]
[1756469606483,26.0,208.72,208.65,37.84]
[1756469606782,0.72,208.71,208.65,37.84]
[1756469606967,16.76807357,208.73,208.65,37.84]
[1756469607164,26.72,208.7,208.65,37.84]
[1756469607368,11.67178341,208.69,208.66,0.66]
[1756469607580,11.67178341,208.7,208.67,37.84]
[1756469607777,11.67178341,208.7,208.68,0.66]
[1756469607978,11.67178341,208.7,208.64,11.67178341]
[1756469607979,0.72,208.75,208.69,38.48]
[1756469608286,11.67178341,208.73,208.71,4.79133726]
[1756469608581,11.67178341,208.73,208.72,38.5]
[1756469609160,11.67178341,208.73,208.72,37.84]
[1756469611295,11.67178341,208.74,208.72,37.84]
[1756469611882,11.67178341,208.74,208.72,43.29102437]
[1756469612097,11.67178341,208.75,208.73,0.66]
[1756469612492,11.73178341,208.76,208.72,42.63102437]
[1756469612683,11.73178341,208.76,208.73,0.66]
[1756469612886,11.73178341,208.76,208.74,0.66]
[1756469613815,11.67178341,208.75,208.74,37.8]
[1756469614297,0.06,208.76,208.74,37.8]
[1756469614599,11.67178341,208.75,208.74,37.8]
[1756469615588,37.76,208.85,208.75,20.0]
[1756469615794,11.67178341,208.76,208.75,100.6]
[1756469615994,11.67178341,208.76,208.75,138.36]
[1756469617105,11.67178341,208.76,208.75,139.02]
[1756469617404,11.67178341,208.76,208.75,138.36]
[1756469619189,4.78980447,208.78,208.75,138.36]
[1756469619512,11.67178341,208.76,208.75,138.36]
[1756469620094,4.78950141,208.79,208.75,138.36]
[1756469620297,11.67178341,208.76,208.75,138.36]
[1756469622086,5.22858401,208.83,208.75,139.02]
[1756469622393,11.67178341,208.78,208.77,20.0]
[1756469622593,11.67178341,208.78,208.77,139.0]
[1756469623892,11.67178341,208.78,208.77,138.34]
[1756469627106,11.67178341,208.78,208.77,100.6]
[1756469627403,11.67178341,208.78,208.77,138.34]
[1756469628095,4.78930671,208.8,208.77,138.34]
[1756469628418,11.67178341,208.78,208.77,138.34]
[1756469628826,4.78904267,208.81,208.77,138.34]
[1756469629021,11.67178341,208.78,208.77,138.34]
[1756469629331,11.67178341,208.78,208.77,139.0]
[1756469632038,4.78887223,208.82,208.77,139.0]
[1756469632212,4.78863265,208.83,208.79,20.0]
[1756469632406,4.78863265,208.83,208.8,37.72]
[1756469633204,4.78812544,208.85,208.8,37.72]
[1756469633510,11.67178341,208.81,208.8,37.72]
[1756469633829,23.78356682,208.81,208.8,80.6]
[1756469634014,12.11178341,208.81,208.8,118.32]
[1756469634640,11.67178341,208.81,208.8,118.32]
[1756469634810,11.67178341,208.81,208.8,80.6]
[1756469635026,12.11178341,208.81,208.8,118.32]
[1756469635314,5.22904267,208.81,208.8,118.32]
[1756469635510,16.90082608,208.81,208.8,118.32]
[1756469635822,16.90082608,208.81,208.8,37.72]
[1756469636232,16.90082608,208.81,208.76,101.26]
[1756469636405,4.78904267,208.81,208.77,37.72]
[1756469636609,11.67178341,208.78,208.77,37.72]
[1756469636807,11.67178341,208.78,208.77,118.32]
[1756469637422,11.67178341,208.78,208.77,118.98]
[1756469642535,11.67178341,208.79,208.78,20.0]
[1756469642845,11.67178341,208.79,208.78,20.68]
[1756469645040,11.67178341,208.79,208.78,58.4]
[1756469645240,11.67178341,208.79,208.78,20.68]
[1756469645441,11.67178341,208.79,208.78,58.4]